Cogmind - Beta 11.1 @@@ ROGUE MODE // 2022.08.23 @ 22:18:34 Player: eldritch Result: Self-destructed Performance ------------- Evolutions (3) 1500 Regions Visited (7) 1400 Robots Destroyed (22) 110 Value Destroyed (482) 482 Prototype IDs (25) 500 Alien Tech Used (0) 0 Bonus (800) 800 TOTAL SCORE: 4792 Bonus ------- Entered DSFs 500 Aligned with FarCom 300 Cogmind --------- Core Integrity 605/700 Matter 225/300 Energy 1570/1600 System Corruption 0% Temperature Cool (0) Movement Walking (130) Location -7/DSF Parts ------- > --- POWER (1) -------- (None) > --- PROPULSION (4) --- Improved Titanium Leg Improved Titanium Leg Improved Titanium Leg > --- UTILITY (5) ------ High-capacity Storage Unit Superbattery Visual Processing Unit Improved Utility Shielding > --- WEAPON (3) ------- (None) > --- INVENTORY (20) --- Deuterium Engine Deuterium Engine Light Deuterium Engine Micro Nuclear Core Wheel Compact Wheel Compact Wheel Compact Wheel Medium Storage Unit Medium Battery (150) Particle Charger Improved Utility Shielding EM Shotgun EM Shotgun Enhanced Autogun Enhanced Autogun Faulty Enhanced Autogun Grenade Launcher Makeshift Spear Peak State ------------ > --- POWER ------------ Improved Deuterium Engine > --- PROPULSION ------- Improved Titanium Leg Improved Titanium Leg Improved Titanium Leg Improved Titanium Leg > --- UTILITY ---------- High-capacity Storage Unit Superbattery Visual Processing Unit Improved Utility Shielding Improved Light Armor Plating > --- WEAPON ----------- EM Shotgun Heavy EM Shotgun Precision Shock Rifle > --- INVENTORY -------- Deuterium Engine Deuterium Engine Light Deuterium Engine Micro Nuclear Core Wheel Compact Wheel Compact Wheel Compact Wheel Medium Storage Unit Medium Battery Particle Charger Improved Utility Shielding EM Shotgun EM Shotgun Heavy EM Shotgun Enhanced Autogun Enhanced Autogun Enhanced Autogun Grenade Launcher Makeshift Spear [Rating: 55] Favorites ----------- Power Ion Engine Engine Ion Engine Propulsion Light Treads Treads Light Treads Leg Aluminum Leg Wheel Compact Wheel Utility Visual Processing Unit Device Seismic Detector Storage Superbattery Processor Visual Processing Unit Protection Improved Light Armor Plating Weapon EM Shotgun Energy Gun EM Shotgun Piercing Weapon Makeshift Spear Build | -11 -10 -10 -10 -9 -8 -7 -7 ------- Run | Scr Mat Min Exi Min Mat Fac DSF Slots Evolved 6 | . . . . . 4 2 . Power . | . . . . . . . . Propulsion 2 | . . . . . 1 1 . Utility 3 | . . . . . 2 1 . Weapon 1 | . . . . . 1 . . Parts Attached 34 | 2 3 . 3 . 16 8 2 Power 2 | . . . . . . 1 1 Engine 2 | . . . . . . 1 1 Core . | . . . . . . . . Reactor . | . . . . . . . . Propulsion 11 | . . . 2 . 5 4 . Treads 3 | . . . . . 3 . . Leg 4 | . . . . . . 4 . Wheel 4 | . . . 2 . 2 . . Hover . | . . . . . . . . Flight . | . . . . . . . . Utility 9 | 1 1 . 1 . 5 1 . Device 1 | 1 . . . . . . . Storage 5 | . . . 1 . 4 . . Processor 1 | . 1 . . . . . . Hackware . | . . . . . . . . Protection 2 | . . . . . 1 1 . Artifact . | . . . . . . . . Weapon 12 | 1 2 . . . 6 2 1 Energy Gun 10 | 1 2 . . . 4 2 1 Energy Cannon . | . . . . . . . . Ballistic Gun . | . . . . . . . . Ballistic Cannon . | . . . . . . . . Launcher . | . . . . . . . . Special Weapon . | . . . . . . . . Impact Weapon . | . . . . . . . . Slashing Weapon . | . . . . . . . . Piercing Weapon 2 | . . . . . 2 . . Special Melee Weapon . | . . . . . . . . Unidentified Prototypes 2 | . . . . . 1 1 . Parts Lost 8 | . 1 . . . . . 7 Power 1 | . . . . . . . 1 Propulsion 1 | . . . . . . . 1 Utility 1 | . . . . . . . 1 Weapon 5 | . 1 . . . . . 4 Highest Loss Streak 7 | . 1 . . . . . 7 To Critical Strikes . | . . . . . . . . Average Slot Usage (%) 96 | . 98 100 100 100 96 85 86 Engine 10 | . 14 14 14 14 9 7 5 Treads 10 | . . . . . 20 15 . Leg 6 | . 28 28 7 . . 7 27 Wheel 9 | . . . 20 28 4 . . Device 1 | . 14 . . . . . . Storage 15 | . 14 14 14 14 17 15 15 Processor 9 | . . 14 14 14 9 7 7 Protection 4 | . . . . . 7 8 11 Energy Gun 25 | . 26 28 28 28 24 23 17 Naked Turns . | . . . . . . . . Heaviest Build 70 | 15 17 16 21 21 62 69 70 Greatest Support 80 | 20 20 20 26 26 63 80 80 Greatest Overweight (x) 22 | . . . . . 1 22 1 Average Overweight (x) . | . . . . . . . . Largest Inventory Capacity 20 | 8 8 8 10 10 20 20 20 Average Capacity 14 | 8 8 8 9 10 18 20 20 Most Carried 20 | 6 8 8 10 10 20 20 20 Average Carried 13 | 6 7 8 8 9 15 19 19 Final Capacity 20 | 8 8 8 10 10 20 20 20 Final Carried 20 | 6 8 8 9 10 20 19 19 Class Distribution -------------------- 65% | Mutant 34% | Skirmisher Dominant Class ---------------- Mutant | -10/Materials Mutant | -10/Mines Mutant | -10/Exiles Mutant | -9/Mines Skirmisher | -8/Materials Skirmisher | -7/Factory Mutant | -7/DSF Resources | -11 -10 -10 -10 -9 -8 -7 -7 ----------- Run | Scr Mat Min Exi Min Mat Fac DSF Matter Collected 420 | 220 15 . . 35 150 . . Remotely . | . . . . . . . . Salvage Created 934 | 93 150 . . 157 534 . . Parts 50 | 3 8 . . 19 20 . . Haulers Intercepted 1 | . . . . . 1 . . Recyclers Shooed . | . . . . . . . . Parts Field Recycled . | . . . . . . . . Retrieved Matter . | . . . . . . . . Parts Self-Destructed . | . . . . . . . . Prevented . | . . . . . . . . Kills | -11 -10 -10 -10 -9 -8 -7 -7 ------- Run | Scr Mat Min Exi Min Mat Fac DSF Combat Hostiles Destroyed 12 | . 3 . . 4 5 . . Guns 10 | . 2 . . 4 4 . . AOE 2 | . 1 . . . 1 . . Classes Destroyed 8 | 2 2 . . 1 3 . . Tunneler 3 | 1 . . . 2 . . . Hauler 1 | . . . . . 1 . . Recycler 4 | 1 . . . 1 2 . . Watcher 2 | . 1 . . . 1 . . Swarmer 4 | . . . . 4 . . . Grunt 5 | . 3 . . . 2 . . Sentry 2 | . . . . . 2 . . Hunter 1 | . . . . . 1 . . Best Kill Streak 5 | 2 3 . . 5 2 . . Combat Bots Only 4 | . 3 . . 4 2 . . Max Kills in Single Turn 1 | 1 1 . . 1 1 . . Gunslinging . | . . . . . . . . Exploded 1 | . 1 . . . 1 . . Melee . | . . . . . . . . Uniques/NPCs Destroyed . | . . . . . . . . Combat | -11 -10 -10 -10 -9 -8 -7 -7 -------- Run | Scr Mat Min Exi Min Mat Fac DSF Damage Taken 1685 | . 176 . . 55 311 16 1127 Core 134 | . 14 . . 10 15 . 95 Absorbed by Shields . | . . . . . . . . Core Remaining (%) 95 | 100 . . . 90 97 . . Volleys Fired 65 | 10 18 . . 7 23 . 7 Largest 3 | 2 2 . . 2 3 . 3 Hottest 150 | 100 90 . . 90 140 . 150 Shots Fired 131 | 20 31 . . 14 55 . 11 Gun 131 | 20 31 . . 14 55 . 11 Cannon . | . . . . . . . . Launcher . | . . . . . . . . Special . | . . . . . . . . Kinetic . | . . . . . . . . Thermal 29 | 19 10 . . . . . . Explosive . | . . . . . . . . Electromagnetic 102 | 1 21 . . 14 55 . 11 Robot Hit Streak 13 | 6 10 . . 5 13 . 5 Robot Miss Streak 5 | 3 5 . . 2 3 . 2 Penetration Max . | . . . . . . . . Secondary Targets . | . . . . . . . . Shots Hit Robots 100 | 13 20 . . 11 46 . 10 Core Hits 43 | 2 8 . . 8 23 . 2 Critical Kills . | . . . . . . . . Critical Parts Destroyed . | . . . . . . . . Critical Strikes . | . . . . . . . . Melee Attacks 7 | . . . . . 7 . . Impact . | . . . . . . . . Slashing . | . . . . . . . . Piercing 7 | . . . . . 7 . . Sneak Attacks . | . . . . . . . . Combat Hostiles . | . . . . . . . . Follow-up Attacks . | . . . . . . . . Damage Inflicted 1571 | 175 295 4 . 142 792 . 163 Guns 1395 | 175 241 . . 104 712 . 163 Cannons . | . . . . . . . . Explosions 169 | . 54 . . 38 77 . . Melee . | . . . . . . . . Ramming 7 | . . 4 . . 3 . . Kinetic . | . . . . . . . . Thermal 392 | 163 114 . . 38 77 . . Explosive . | . . . . . . . . Electromagnetic 1172 | 12 181 . . 104 712 . 163 Impact . | . . . . . . . . Slashing . | . . . . . . . . Piercing . | . . . . . . . . Highest Corruption . | . . . . . . . . Average Corruption . | . . . . . . . . Corruption Purged . | . . . . . . . . Corruption Blocked . | . . . . . . . . Overload Shots . | . . . . . . . . Overflow Damage . | . . . . . . . . Projectiles . | . . . . . . . . Explosions . | . . . . . . . . Melee . | . . . . . . . . Knockbacks . | . . . . . . . . Impact . | . . . . . . . . Kinetic . | . . . . . . . . Secondary . | . . . . . . . . Self-Inflicted Damage 61 | . 37 . . 24 . . . Shots 2 | . 1 . . 1 . . . Rammed 1 | . . . . . 1 . . Targets Rammed 2 | . . 1 . . 1 . . Kicked 1 | . . 1 . . . . . Crushed . | . . . . . . . . Highest Temperature 351 | 312 309 . . 122 351 . 18 Average Temperature 114 | 142 147 . . 60 99 . 10 Received Heat Transfer 252 | . 81 . . . 162 . 9 Effects 3 | . . . . . 3 . . Interference 3 | . . . . . 3 . . Siege Activations . | . . . . . . . . Robots Corrupted . | . . . . . . . . Combat Hostiles . | . . . . . . . . Parts Fried 5 | . 1 . . . 4 . . Impact Corruptions . | . . . . . . . . Robots Melted . | . . . . . . . . Combat Hostiles . | . . . . . . . . Parts Melted 1 | 1 . . . . . . . Heat Transferred 866 | 481 235 . . 50 100 . . Parts Sabotaged . | . . . . . . . . Parts Stolen . | . . . . . . . . Parts Stripped . | . . . . . . . . Power Chain Reactions 3 | . 1 . . 1 1 . . Missiles Intercepted . | . . . . . . . . Alert | -11 -10 -10 -10 -9 -8 -7 -7 ------- Run | Scr Mat Min Exi Min Mat Fac DSF Peak Influence 163 | 10 128 49 . 138 163 . . Initial 53 | . 6 49 . . 53 . . Average 44 | 4 65 49 . 8 81 . . Maximum Alert Level . | . . . . . . . . Low Security (%) 100 | 100 100 100 . 100 100 100 100 Level 1 . | . . . . . . . . Level 2 . | . . . . . . . . Level 3 . | . . . . . . . . Level 4 . | . . . . . . . . Level 5 . | . . . . . . . . High Security . | . . . . . . . . Max Security . | . . . . . . . . Squads Dispatched 6 | . 2 . . . 1 1 2 Investigation . | . . . . . . . . Extermination 1 | . . . . . . 1 . Reinforcement 5 | . 2 . . . 1 . 2 Assault . | . . . . . . . . Garrison . | . . . . . . . . Intercept . | . . . . . . . . Searches Triggered . | . . . . . . . . Construction Impeded 1 | . . . . . 1 . . Haulers Reinforced . | . . . . . . . . Active Scanning Responses . | . . . . . . . . Cargo Convoy Interrupts . | . . . . . . . . Stealth | -11 -10 -10 -10 -9 -8 -7 -7 --------- Run | Scr Mat Min Exi Min Mat Fac DSF Distress Signals 1 | . 1 . . . . . . Communications Jammed . | . . . . . . . . Distress Signals . | . . . . . . . . Times Spotted 26 | . 7 . . 5 10 1 3 Peak Tracking Total 4 | . 4 . . 4 3 1 4 Tactical Retreats 1 | . . . . 1 . . . Traps | -11 -10 -10 -10 -9 -8 -7 -7 ------- Run | Scr Mat Min Exi Min Mat Fac DSF Traps Triggered . | . . . . . . . . Indirectly . | . . . . . . . . Trap Hack Attempts . | . . . . . . . . Triggered . | . . . . . . . . Disarmed . | . . . . . . . . Reprogrammed . | . . . . . . . . Reused . | . . . . . . . . Traps Extracted . | . . . . . . . . Installed . | . . . . . . . . Triggered . | . . . . . . . . Machines | -11 -10 -10 -10 -9 -8 -7 -7 ---------- Run | Scr Mat Min Exi Min Mat Fac DSF Machines Disabled . | . . . . . . . . Max in Single Turn . | . . . . . . . . Machines Sabotaged . | . . . . . . . . Garrisons Compromised . | . . . . . . . . Overloaded Fab Kills . | . . . . . . . . Hacking | -11 -10 -10 -10 -9 -8 -7 -7 --------- Run | Scr Mat Min Exi Min Mat Fac DSF Machines Accessed 5 | . . . 2 . 2 1 . Terminals 3 | . . . . . 2 1 . Fabricators . | . . . . . . . . Repair Stations . | . . . . . . . . Recycling Units . | . . . . . . . . Scanalyzers . | . . . . . . . . Garrison Access . | . . . . . . . . Total Hacks 7 | . . . 2 . 4 1 . Successful 5 | . . . 2 . 2 1 . Failed 2 | . . . . . 2 . . Catastrophic . | . . . . . . . . Database Lockouts . | . . . . . . . . Manual 5 | . . . 1 . 4 . . Terminals 5 | . . . . . 4 1 . Fabricators . | . . . . . . . . Repair Stations . | . . . . . . . . Recycling Units . | . . . . . . . . Scanalyzers . | . . . . . . . . Garrison Access . | . . . . . . . . Terminal Hacks 4 | . . . 2 . 1 1 . Record 1 | . . . 1 . . . . Robot Analysis 1 | . . . . . 1 . . Open DSF 1 | . . . . . . 1 . EX-Prototype ID Bank 1 | . . . 1 . . . . Fabricator Hacks . | . . . . . . . . Repair Station Hacks . | . . . . . . . . Recycling Unit Hacks . | . . . . . . . . Scanalyzer . | . . . . . . . . Garrison Access Hacks . | . . . . . . . . Unauthorized Hacks 1 | . . . . . 1 . . Terminals 1 | . . . . . 1 . . Track 1 | . . . . . 1 . . Fabricators . | . . . . . . . . Repair Stations . | . . . . . . . . Recycling Units . | . . . . . . . . Scanalyzers . | . . . . . . . . Garrison Access . | . . . . . . . . Data Cores Recovered . | . . . . . . . . Used . | . . . . . . . . Hacking Detections 3 | . . . . . 2 1 . Full Trace Events . | . . . . . . . . Feedback Events . | . . . . . . . . Feedback Blocked . | . . . . . . . . Robot Schematics Acquired . | . . . . . . . . Robots Built . | . . . . . . . . Authchips . | . . . . . . . . Time . | . . . . . . . . Total Robot Build Rating . | . . . . . . . . Part Schematics Acquired . | . . . . . . . . Parts Built . | . . . . . . . . Authchips . | . . . . . . . . Time . | . . . . . . . . Total Part Build Rating . | . . . . . . . . Parts Repaired . | . . . . . . . . Time . | . . . . . . . . Parts Recycled . | . . . . . . . . Recycled Matter . | . . . . . . . . Retrieved Matter . | . . . . . . . . Retrieved Components . | . . . . . . . . Parts Scanalyzed . | . . . . . . . . Part Schematics Acquired . | . . . . . . . . Parts Damaged . | . . . . . . . . Bothacking | -11 -10 -10 -10 -9 -8 -7 -7 ------------ Run | Scr Mat Min Exi Min Mat Fac DSF Used RIF Installer . | . . . . . . . . Robots Hacked . | . . . . . . . . Non-combat . | . . . . . . . . Combat . | . . . . . . . . Robot Hacks Applied . | . . . . . . . . Relay Couplers Released . | . . . . . . . . Fabnet Peak Effective % . | . . . . . . . . Robots Rewired . | . . . . . . . . Allies Hacked . | . . . . . . . . Hacks Repelled . | . . . . . . . . Allies | -11 -10 -10 -10 -9 -8 -7 -7 -------- Run | Scr Mat Min Exi Min Mat Fac DSF Total Allies . | . . . . . . . . Largest Group . | . . . . . . . . Highest-Rated Group . | . . . . . . . . Highest-Rated Ally . | . . . . . . . . Total Orders . | . . . . . . . . Ally Attacks . | . . . . . . . . Total Damage . | . . . . . . . . Kills . | . . . . . . . . Allies Corrupted . | . . . . . . . . Allies Melted . | . . . . . . . . Intel | -11 -10 -10 -10 -9 -8 -7 -7 ------- Run | Scr Mat Min Exi Min Mat Fac DSF Robot Analysis Total 1 | . . . . . 1 . . Derelict Logs Recovered 2 | . . . . 2 . . . Drone Launches . | . . . . . . . . Drone Recoveries . | . . . . . . . . Exploration | -11 -10 -10 -10 -9 -8 -7 -7 ------------- Run | Scr Mat Min Exi Min Mat Fac DSF Turns Passed 2289 | 83 205 77 362 353 807 344 58 Spaces Moved 1562 | 42 113 64 366 342 414 193 28 Core 1 | . . . . . . 1 . Treads 403 | . . . . . 273 130 . Legs 386 | 42 113 64 77 . . 62 28 Wheels 772 | . . . 289 342 141 . . Hover . | . . . . . . . . Flight . | . . . . . . . . Fastest Speed 90 | 120 120 120 90 90 90 130 130 Average Speed 119 | 120 120 120 96 90 139 170 132 Slowest Speed 1150 | 120 120 120 120 90 160 1150 200 Overloaded Moves . | . . . . . . . . Propulsion Burnouts . | . . . . . . . . Robots Hopped . | . . . . . . . . Cave-ins Triggered . | . . . . . . . . Exploration Rate (%) 35 | 4 14 10 72 80 25 8 67 Regions Visited 7 Branch Regions 3 Pre-discovered Areas 1 | . . . 1 . . . . Known Exits Taken 1 | . . . . . . 1 . Unknown Exits Taken 6 | 1 1 1 1 1 1 . . Scrap Searched . | . . . . . . . . Spaces Dug 7 | . . . . . 7 . . Terrain Destroyed 25 | . 4 . . 6 15 . . Melee 7 | . . . . . 7 . . Projectile . | . . . . . . . . AOE 18 | . 4 . . 6 8 . . Terrain Rammed . | . . . . . . . . Walls Destroyed . | . . . . . . . . Machines Disabled . | . . . . . . . . Actions | -11 -10 -10 -10 -9 -8 -7 -7 --------- Run | Scr Mat Min Exi Min Mat Fac DSF Total 1849 | 53 151 64 375 373 585 209 39 Wait 151 | . 11 . 1 24 113 2 . Move 1555 | 41 112 63 365 341 413 192 28 Hop . | . . . . . . . . Pick Up 21 | . 4 . 3 1 11 1 1 Fast Attach 11 | 1 2 . . . 3 5 . Attach 4 | . . . . . 2 1 1 Detach . | . . . . . . . . Swap 19 | 1 1 . 3 . 11 2 1 Drop 14 | . 3 . 3 . 1 6 1 Fire 65 | 10 18 . . 7 23 . 7 Melee 7 | . . . . . 7 . . Ram . | . . . . . . . . Kick 1 | . . 1 . . . . . Crush 1 | . . . . . 1 . . Escape Stasis . | . . . . . . . . Rewire . | . . . . . . . . Trap . | . . . . . . . . Miscellaneous . | . . . . . . . . Route ------- -11/Scrapyard -10/Materials -10/Mines (discovered 2 exits: [*Mat] / *Exi) -10/Exiles (discovered 2 exits: [*Min x2]) -9/Mines -8/Materials -7/Factory -7/DSF History --------- Turn | Location | Event 1 | -11/Scrapyard | Discovered new exit (range 3) 84 | -11/Scrapyard | Entered Materials 274 | -10/Materials | Discovered new exit (range 5) 289 | -10/Materials | Entered Mines 306 | -10/Mines | Build established: Mutant 317 | -10/Mines | Deemed a non-threat by the Exiles lab entrance 318 | -10/Mines | Discovered new exit (range 5) 343 | -10/Mines | Discovered new exit (range 8) 366 | -10/Mines | Entered Exiles 382 | -10/Exiles | Discovered new exit (range 17) 399 | -10/Exiles | Met 8R-AWN 416 | -10/Exiles | Met EX-HEX 490 | -10/Exiles | Met EX-DEC 579 | -10/Exiles | Learned location of Zion (-7) 600 | -10/Exiles | Met EX-BIN 612 | -10/Exiles | Aligned with FarCom system 613 | -10/Exiles | Given EX-Vault access code 634 | -10/Exiles | Opened EX-Vault 640 | -10/Exiles | Found Superbattery 661 | -10/Exiles | Warned to stay clear of 0b10 Research branches 718 | -10/Exiles | Discovered new exit (range 12) 728 | -10/Exiles | Left Exiles lab with Superbattery 728 | -10/Exiles | Entered Mines 856 | -9/Mines | A weapon hastily lodged in a ceiling crevice suddenly fell to the ground 927 | -9/Mines | Learned Materials garrison access intel 1007 | -9/Mines | Learned Materials terminal intel 1055 | -9/Mines | Discovered new exit (range 7) 1081 | -9/Mines | Entered Materials 1081 | -8/Materials | Evolved 4 slots: Propulsion x1, Utility x2, Weapon x1 1082 | -8/Materials | Loaded intel: 12 terminal locations 1083 | -8/Materials | Loaded intel: 1 garrison access location 1233 | -8/Materials | Discovered new exit (range 5) 1400 | -8/Materials | Build established: Skirmisher 1888 | -8/Materials | Entered Factory 1888 | -7/Factory | Evolved 2 slots: Propulsion x1, Utility x1 2229 | -7/Factory | Identified exit to DSF 2232 | -7/Factory | Entered DSF 2232 | -7/DSF | Met a pair of Sappers preparing to destroy DSF 2259 | -7/DSF | Additional patrols routed to DSF 2290 | -7/DSF | Self-destructed Last Messages --------------- 02261_ Hvy. EM Shotgun destroyed. 02261_ Knocked back. 02264_ Imp. Light Armor Plating destroyed. 02264_ Knocked back. 02271_ A-02 Transporter destroyed. 02274_ H-61 Shepherd calls for reinforcements. 02274_ ALERT: Suspicious intruders detected, dispatching Specialist reinforcements to area. 02275_ Imp. Titanium Leg destroyed. 02275_ Prc. Shock Rifle destroyed. 02275_ Knocked back. 02280_ EM Shotgun destroyed. 02280_ Knocked back. 02281_ A-02 Transporter destroyed. 02283_ Imp. Deuterium Engine destroyed. 02285_ Knocked back. 02289_ A-02 Transporter destroyed. 02289_ Hvy. EM Shotgun destroyed. 02289_ G-47 Trooper destroyed. 02290_ H-61 Shepherd heat short circuits Cooling System. Map ----- +----------------------------------------------------+ | | | | | ???????????????????????????????????????????? | | ???????????????????????????????????????????? | | ???????????????????????????????????????????? | | ???????????????????????????????????????????? | | ???????????????????????????????????????????? | | ???????????????????????????????????????????? | | ???????????????????????????????????????????? | | ???????????????????????????????????????????? | | ???????????????????????????????????????????? | | ???????????????g ????????????????????????? | | ???????????????g ????????????????????????? | | ????????????????# ???????????????????????? | | ??????????????### ##?????????????????????? | | ??????????????#== //########?????????????? | | ??????????????#== ; # ###??######???? | | ??????????????#== ### ###?? | | ??????????????#; % ##? | | ?????????????## ? | | ?????????????#; # | | ???????????### | | ??????????##; | | ???????? ; | | ???????? ; | | ???????? @ | | ???????? x H | | ???????? | | ????????? ! | | ????????? ;! | | ??????????;; # | | ?????????? # | | ?????????? ##? | | ??????????? ##?? | | ??????????? #??? | | ???????????? #?? | | ???????????? #? | | ???????????? ? | | ????????????? # | | ??????????????? %" # | | ??????????????# " # | | ??????????????# " # | | ??????????????? % " # | | ????????????????? !!" ## | | ??????????????????##### #? | | ??????????????????????# #? | | ??????????????????????# ##? | | ???????????????????????? #####?? | | ??????????????????????????? ##?????? | | ????????????????????????????? ?????????? | +----------------------------------------------------+ Best States ------------- Heat Dissipation 34 Energy Generation 16 Energy Capacity 1790 Matter Stores 300 Matter Capacity 300 Sight Range 18 Terrain Scan Density 10 Armor Coverage 150 Utility Shielding 66 Evasion (%) 55 Recoil Reduction 3 Item Schematics ----------------- None Robot Schematics ------------------ None Fabricated ------------ Nothing Alien Tech Used ----------------- None Achievements -------------- None Challenges ------------ None Game ------ Seed MediumStealthCompressor Manual? 0 Play Time 00:20:47 Cumulative 248.7 hours Start 2022.08.21 @ 22:37:53 End 2022.08.23 @ 22:18:34 Sessions 3 Manual Loads 0 Difficulty Rogue Special Mode None Game No. 568 Rogue 568 Adventurer 0 Explorer 0 Win Type - Total 5 Types 4/0/0/1/0/0/0/0/0 Lore% 58 Gallery% 61 Achievement% 56 Wizard Run 0 Options --------- ASCII 0 Keyboard 0 Movement Numpad Keybinds 0 Fullscreen 1 Font 16/SmallcapsGlow Map View 75x55 Tactical HUD 1 Map Filters NONE Filters NONE Steam 1 RUN: b95c5985-fcf6-405d-9fef-9590529dbdf5